[Event "Titled Tuesday Blitz April 26 Early 2022"]
[White "Stelmaszyk, Nico"]
[Black "Tatarinov, Dmitry"]
[WhiteFideId "16200462"]
[BlackFideId "24160067"]
[WhiteElo "2393"]
[BlackElo "2642"]
[Result "0-1"]
[Round "06"]
[TimeControl "180+1"]
[Date "2022.04.26"]
[WhiteClock "0:01:42"]
[BlackClock "0:01:42"]

1. e4 {[%clk 0:02:59]}  c5 {[%clk 0:02:10]} 2. Nf3 {[%clk 0:02:59]}  d6 {[%clk 0:02:10]} 3. c3 {[%clk 0:02:59]}  Nf6 {[%clk 0:02:10]} 4. Be2 {[%clk 0:02:56]}  g6 {[%clk 0:02:11]} 5. O-O {[%clk 0:02:56]}  Bg7 {[%clk 0:02:11]} 6. Re1 {[%clk 0:02:57]}  O-O {[%clk 0:02:11]} 7. Bf1 {[%clk 0:02:58]}  Bg4 {[%clk 0:02:12]} 8. h3 {[%clk 0:02:55]}  Bxf3 {[%clk 0:02:12]} 9. Qxf3 {[%clk 0:02:56]}  Nc6 {[%clk 0:02:12]} 10. d3 {[%clk 0:02:56]}  Rb8 {[%clk 0:02:12]} 11. Bg5 {[%clk 0:02:50]}  b5 {[%clk 0:02:11]} 12. Nd2 {[%clk 0:02:50]}  b4 {[%clk 0:02:11]} 13. c4 {[%clk 0:02:51]}  Nd4 {[%clk 0:02:10]} 14. Qd1 {[%clk 0:02:51]}  a5 {[%clk 0:02:10]} 15. Be3 {[%clk 0:02:48]}  Nd7 {[%clk 0:02:10]} 16. Rb1 {[%clk 0:02:45]}  Qc7 {[%clk 0:02:09]} 17. g3 {[%clk 0:02:43]}  e6 {[%clk 0:02:09]} 18. Bg2 {[%clk 0:02:43]}  a4 {[%clk 0:02:06]} 19. Nf3 {[%clk 0:02:41]}  Nxf3+ {[%clk 0:02:05]} 20. Bxf3 {[%clk 0:02:42]}  b3 {[%clk 0:02:03]} 21. a3 {[%clk 0:02:42]}  Ne5 {[%clk 0:02:03]} 22. Bg2 {[%clk 0:02:41]}  Nc6 {[%clk 0:02:03]} 23. Qd2 {[%clk 0:02:39]}  Nd4 {[%clk 0:02:03]} 24. Bxd4 {[%clk 0:02:40]}  Bxd4 {[%clk 0:02:02]} 25. Kh2 {[%clk 0:02:41]}  Kg7 {[%clk 0:02:02]} 26. f4 {[%clk 0:02:39]}  Rbe8 {[%clk 0:01:56]} 27. Re2 {[%clk 0:02:39]}  f5 {[%clk 0:01:55]} 28. Rbe1 {[%clk 0:02:38]}  e5 {[%clk 0:01:55]} 29. exf5 {[%clk 0:02:35]}  Rxf5 {[%clk 0:01:55]} 30. Bd5 {[%clk 0:02:19]}  Ref8 {[%clk 0:01:54]} 31. Re4 {[%clk 0:02:12]}  h5 {[%clk 0:01:51]} 32. R1e2 {[%clk 0:02:07]}  h4 {[%clk 0:01:51]} 33. fxe5 {[%clk 0:01:49]}  Rf2+ {[%clk 0:01:50]} 34. Kh1 {[%clk 0:01:49]}  Rf1+ {[%clk 0:01:48]} 35. Kg2 {[%clk 0:01:49]}  R8f2+ {[%clk 0:01:47]} 36. Rxf2 {[%clk 0:01:50]}  Rxf2+ {[%clk 0:01:48]} 37. Qxf2 {[%clk 0:01:51]}  Bxf2 {[%clk 0:01:48]} 38. Kxf2 {[%clk 0:01:51]}  hxg3+ {[%clk 0:01:48]} 39. Kxg3 {[%clk 0:01:52]}  dxe5 {[%clk 0:01:49]} 40. Re2 {[%clk 0:01:51]}  e4+ {[%clk 0:01:48]} 41. Kf2 {[%clk 0:01:48]}  exd3 {[%clk 0:01:48]} 42. Re3 {[%clk 0:01:44]}  Qf4+ {[%clk 0:01:48]} 43. Bf3 {[%clk 0:01:45]}  d2 {[%clk 0:01:48]} 44. Rd3 {[%clk 0:01:44]}  Qh2+ {[%clk 0:01:44]} 45. Ke3 {[%clk 0:01:44]}  d1=Q {[%clk 0:01:41]} 46. Rxd1 {[%clk 0:01:42]}  Qxb2 {[%clk 0:01:42]} 0-1


[Site "https://www.chess.com"]

[Event "Titled Tuesday Blitz April 26 Early 2022"]
[White "Swiercz, Dariusz"]
[Black "Moroni, Luca Jr"]
[WhiteFideId "1126881"]
[BlackFideId "865834"]
[WhiteElo "2627"]
[BlackElo "2573"]
[Result "0-1"]
[Round "06"]
[TimeControl "180+1"]
[Date "2022.04.26"]
[WhiteClock "0:00:04"]
[BlackClock "0:00:06"]

1. Nf3 {[%clk 0:03:00]}  g6 {[%clk 0:02:58]} 2. b3 {[%clk 0:02:59]}  Bg7 {[%clk 0:02:59]} 3. d4 {[%clk 0:03:00]}  c5 {[%clk 0:02:52]} 4. e3 {[%clk 0:03:00]}  Nc6 {[%clk 0:02:47]} 5. Bb2 {[%clk 0:03:00]}  cxd4 {[%clk 0:02:48]} 6. Nxd4 {[%clk 0:02:59]}  Nxd4 {[%clk 0:02:46]} 7. Bxd4 {[%clk 0:02:57]}  Bxd4 {[%clk 0:02:45]} 8. Qxd4 {[%clk 0:02:56]}  Nf6 {[%clk 0:02:46]} 9. c4 {[%clk 0:02:55]}  O-O {[%clk 0:02:42]} 10. Nc3 {[%clk 0:02:55]}  Qa5 {[%clk 0:02:40]} 11. Qd2 {[%clk 0:02:52]}  Rd8 {[%clk 0:02:28]} 12. Rd1 {[%clk 0:02:46]}  d6 {[%clk 0:02:24]} 13. Be2 {[%clk 0:02:44]}  Be6 {[%clk 0:02:23]} 14. Bf3 {[%clk 0:02:44]}  Rab8 {[%clk 0:02:22]} 15. O-O {[%clk 0:02:43]}  Nd7 {[%clk 0:02:08]} 16. Bd5 {[%clk 0:02:22]}  Bxd5 {[%clk 0:02:05]} 17. Nxd5 {[%clk 0:02:23]}  Qxd2 {[%clk 0:02:05]} 18. Rxd2 {[%clk 0:02:24]}  Kf8 {[%clk 0:02:03]} 19. Nc3 {[%clk 0:02:11]}  a6 {[%clk 0:02:00]} 20. a4 {[%clk 0:02:11]}  Nc5 {[%clk 0:01:55]} 21. Rb1 {[%clk 0:02:09]}  Rbc8 {[%clk 0:01:42]} 22. a5 {[%clk 0:01:56]}  Nd7 {[%clk 0:01:30]} 23. Na4 {[%clk 0:01:51]}  Ne5 {[%clk 0:01:26]} 24. Kf1 {[%clk 0:01:31]}  Ke8 {[%clk 0:01:26]} 25. Ke2 {[%clk 0:01:30]}  Rc7 {[%clk 0:01:18]} 26. Nb6 {[%clk 0:01:23]}  Rc5 {[%clk 0:01:17]} 27. Ra2 {[%clk 0:01:18]}  e6 {[%clk 0:01:00]} 28. f4 {[%clk 0:01:12]}  Nd7 {[%clk 0:00:59]} 29. Nxd7 {[%clk 0:00:47]}  Kxd7 {[%clk 0:00:58]} 30. g4 {[%clk 0:00:42]}  h5 {[%clk 0:00:51]} 31. g5 {[%clk 0:00:42]}  e5 {[%clk 0:00:49]} 32. Kf3 {[%clk 0:00:38]}  Ke6 {[%clk 0:00:48]} 33. Rd1 {[%clk 0:00:36]}  d5 {[%clk 0:00:43]} 34. Rad2 {[%clk 0:00:23]}  e4+ {[%clk 0:00:31]} 35. Kf2 {[%clk 0:00:22]}  Rxa5 {[%clk 0:00:30]} 36. b4 {[%clk 0:00:23]}  Ra4 {[%clk 0:00:28]} 37. cxd5+ {[%clk 0:00:21]}  Kd6 {[%clk 0:00:23]} 38. Rd4 {[%clk 0:00:22]}  Re8 {[%clk 0:00:22]} 39. R1d2 {[%clk 0:00:12]}  Ra1 {[%clk 0:00:18]} 40. Rb2 {[%clk 0:00:07]}  Rc1 {[%clk 0:00:16]} 41. b5 {[%clk 0:00:06]}  a5 {[%clk 0:00:17]} 42. b6 {[%clk 0:00:06]}  Rc5 {[%clk 0:00:17]} 43. h4 {[%clk 0:00:05]}  Rxd5 {[%clk 0:00:14]} 44. Rxd5+ {[%clk 0:00:05]}  Kxd5 {[%clk 0:00:15]} 45. Rb5+ {[%clk 0:00:06]}  Kc6 {[%clk 0:00:15]} 46. Rxa5 {[%clk 0:00:06]}  Kxb6 {[%clk 0:00:15]} 47. Ra4 {[%clk 0:00:03]}  Kc5 {[%clk 0:00:12]} 48. Ke2 {[%clk 0:00:02]}  Re7 {[%clk 0:00:08]} 49. Kd2 {[%clk 0:00:02]}  b5 {[%clk 0:00:08]} 50. Ra6 {[%clk 0:00:01]}  Kb4 {[%clk 0:00:06]} 51. Rf6 {[%clk 0:00:01]}  Rc7 {[%clk 0:00:06]} 52. Kd1 {[%clk 0:00:01]}  Kb3 {[%clk 0:00:06]} 53. f5 {[%clk 0:00:02]}  gxf5 {[%clk 0:00:06]} 54. Rxf5 {[%clk 0:00:02]}  b4 {[%clk 0:00:07]} 55. Re5 {[%clk 0:00:02]}  Kc3 {[%clk 0:00:07]} 56. Rxe4 {[%clk 0:00:02]}  b3 {[%clk 0:00:07]} 57. Kc1 {[%clk 0:00:03]}  Ra7 {[%clk 0:00:06]} 58. Kd1 {[%clk 0:00:02]}  b2 {[%clk 0:00:05]} 59. Ke2 {[%clk 0:00:02]}  b1=Q {[%clk 0:00:05]} 60. Re8 {[%clk 0:00:03]}  Qc2+ {[%clk 0:00:06]} 61. Kf3 {[%clk 0:00:04]}  Qf5+ {[%clk 0:00:06]} 62. Ke2 {[%clk 0:00:04]}  Ra2+ {[%clk 0:00:06]} 0-1


[Site "https://www.chess.com"]

[Event "Titled Tuesday Blitz April 26 Early 2022"]
[White "Tanenbaum, Zachary"]
[Black "Devaev, Alexander"]
[WhiteFideId "2060850"]
[BlackFideId "4169395"]
[WhiteElo "2713"]
[BlackElo "2467"]
[Result "1-0"]
[Round "06"]
[TimeControl "180+1"]
[Date "2022.04.26"]
[WhiteClock "0:00:06"]
[BlackClock "0:00:01"]

1. e4 {[%clk 0:02:57]}  c6 {[%clk 0:02:59]} 2. d4 {[%clk 0:02:58]}  d5 {[%clk 0:02:58]} 3. exd5 {[%clk 0:02:58]}  cxd5 {[%clk 0:02:59]} 4. Bd3 {[%clk 0:02:59]}  Nc6 {[%clk 0:02:59]} 5. c3 {[%clk 0:02:59]}  g6 {[%clk 0:02:57]} 6. Bf4 {[%clk 0:02:59]}  Nh6 {[%clk 0:02:55]} 7. Nf3 {[%clk 0:02:59]}  Bf5 {[%clk 0:02:54]} 8. O-O {[%clk 0:02:55]}  Bg7 {[%clk 0:02:50]} 9. Re1 {[%clk 0:02:48]}  O-O {[%clk 0:02:49]} 10. Na3 {[%clk 0:02:06]}  Re8 {[%clk 0:02:35]} 11. Nc2 {[%clk 0:02:03]}  Rc8 {[%clk 0:02:33]} 12. Ne3 {[%clk 0:02:02]}  Bxd3 {[%clk 0:02:32]} 13. Qxd3 {[%clk 0:02:03]}  e6 {[%clk 0:02:24]} 14. Re2 {[%clk 0:01:44]}  Nf5 {[%clk 0:02:20]} 15. Ng4 {[%clk 0:01:44]}  Nd6 {[%clk 0:02:10]} 16. Nh6+ {[%clk 0:01:28]}  Kf8 {[%clk 0:02:03]} 17. Ne5 {[%clk 0:01:08]}  Nxe5 {[%clk 0:01:39]} 18. dxe5 {[%clk 0:01:09]}  Ne4 {[%clk 0:01:08]} 19. Qf3 {[%clk 0:00:57]}  Rc7 {[%clk 0:00:55]} 20. Rd1 {[%clk 0:00:52]}  g5 {[%clk 0:00:41]} 21. Qh5 {[%clk 0:00:28]}  gxf4 {[%clk 0:00:33]} 22. Rxe4 {[%clk 0:00:28]}  dxe4 {[%clk 0:00:31]} 23. Rxd8 {[%clk 0:00:28]}  Rxd8 {[%clk 0:00:31]} 24. h3 {[%clk 0:00:22]}  Rd5 {[%clk 0:00:27]} 25. Ng4 {[%clk 0:00:18]}  h6 {[%clk 0:00:25]} 26. Qh4 {[%clk 0:00:12]}  Rcd7 {[%clk 0:00:22]} 27. Nf6 {[%clk 0:00:11]}  Rd1+ {[%clk 0:00:23]} 28. Kh2 {[%clk 0:00:11]}  R7d2 {[%clk 0:00:21]} 29. Qxf4 {[%clk 0:00:11]}  Re2 {[%clk 0:00:20]} 30. Nxe4 {[%clk 0:00:11]}  Rde1 {[%clk 0:00:20]} 31. f3 {[%clk 0:00:10]}  Ke7 {[%clk 0:00:16]} 32. Nf6 {[%clk 0:00:10]}  Rxe5 {[%clk 0:00:14]} 33. Ng4 {[%clk 0:00:08]}  Rf5 {[%clk 0:00:14]} 34. Qb4+ {[%clk 0:00:08]}  Ke8 {[%clk 0:00:12]} 35. Qxb7 {[%clk 0:00:07]}  h5 {[%clk 0:00:13]} 36. Qa8+ {[%clk 0:00:07]}  Ke7 {[%clk 0:00:12]} 37. Qxa7+ {[%clk 0:00:07]}  Ke8 {[%clk 0:00:13]} 38. Qb8+ {[%clk 0:00:07]}  Ke7 {[%clk 0:00:12]} 39. Qb4+ {[%clk 0:00:07]}  Ke8 {[%clk 0:00:12]} 40. Nf2 {[%clk 0:00:05]}  Be5+ {[%clk 0:00:11]} 41. g3 {[%clk 0:00:06]}  h4 {[%clk 0:00:11]} 42. Ne4 {[%clk 0:00:03]}  hxg3+ {[%clk 0:00:11]} 43. Kg2 {[%clk 0:00:03]}  Re2+ {[%clk 0:00:11]} 44. Kf1 {[%clk 0:00:04]}  Rxe4 {[%clk 0:00:11]} 45. Qxe4 {[%clk 0:00:04]}  f6 {[%clk 0:00:08]} 46. Kg2 {[%clk 0:00:04]}  Kf7 {[%clk 0:00:05]} 47. h4 {[%clk 0:00:04]}  Kg6 {[%clk 0:00:06]} 48. Qg4+ {[%clk 0:00:04]}  Kf7 {[%clk 0:00:06]} 49. h5 {[%clk 0:00:04]}  Rg5 {[%clk 0:00:06]} 50. Qh4 {[%clk 0:00:04]}  Kg7 {[%clk 0:00:05]} 51. f4 {[%clk 0:00:04]}  Bxf4 {[%clk 0:00:01]} 52. Qxf4 {[%clk 0:00:04]}  e5 {[%clk 0:00:02]} 53. Qf3 {[%clk 0:00:04]}  Kh6 {[%clk 0:00:01]} 54. Qxf6+ {[%clk 0:00:04]}  Kxh5 {[%clk 0:00:01]} 55. Qxg5+ {[%clk 0:00:04]}  Kxg5 {[%clk 0:00:02]} 56. Kxg3 {[%clk 0:00:05]}  Kf5 {[%clk 0:00:01]} 57. Kf3 {[%clk 0:00:06]} 1-0


[Site "https://www.chess.com"]

[Event "Titled Tuesday Blitz April 26 Early 2022"]
[White "Todorovic, Bojan"]
[Black "Kosteniuk, Alexandra"]
[WhiteFideId "917087"]
[BlackFideId "4128125"]
[WhiteElo "2266"]
[BlackElo "2469"]
[Result "1-0"]
[Round "06"]
[TimeControl "180+1"]
[Date "2022.04.26"]
[WhiteClock "0:00:04"]
[BlackClock "0:00:17"]

1. d4 {[%clk 0:02:56]}  Nf6 {[%clk 0:02:59]} 2. c4 {[%clk 0:02:55]}  e6 {[%clk 0:02:59]} 3. Nc3 {[%clk 0:02:52]}  d5 {[%clk 0:02:58]} 4. cxd5 {[%clk 0:02:51]}  Nxd5 {[%clk 0:02:57]} 5. e4 {[%clk 0:02:50]}  Nxc3 {[%clk 0:02:58]} 6. bxc3 {[%clk 0:02:51]}  c5 {[%clk 0:02:59]} 7. Rb1 {[%clk 0:02:51]}  Nc6 {[%clk 0:02:58]} 8. Nf3 {[%clk 0:02:46]}  cxd4 {[%clk 0:02:58]} 9. cxd4 {[%clk 0:02:46]}  Bb4+ {[%clk 0:02:57]} 10. Bd2 {[%clk 0:02:45]}  Bxd2+ {[%clk 0:02:57]} 11. Qxd2 {[%clk 0:02:45]}  O-O {[%clk 0:02:57]} 12. Bc4 {[%clk 0:02:43]}  b6 {[%clk 0:02:56]} 13. O-O {[%clk 0:02:42]}  Bb7 {[%clk 0:02:54]} 14. Rfd1 {[%clk 0:02:34]}  Rc8 {[%clk 0:02:52]} 15. Qf4 {[%clk 0:02:25]}  Na5 {[%clk 0:02:49]} 16. Bd3 {[%clk 0:02:23]}  Qf6 {[%clk 0:02:49]} 17. Qg3 {[%clk 0:02:12]}  Rfd8 {[%clk 0:02:45]} 18. e5 {[%clk 0:01:52]}  Qh6 {[%clk 0:02:45]} 19. Ng5 {[%clk 0:01:51]}  g6 {[%clk 0:02:45]} 20. Be4 {[%clk 0:01:35]}  Ba6 {[%clk 0:02:42]} 21. d5 {[%clk 0:01:28]}  Be2 {[%clk 0:02:28]} 22. Re1 {[%clk 0:00:48]}  exd5 {[%clk 0:02:25]} 23. Qf4 {[%clk 0:00:24]}  Qg7 {[%clk 0:02:22]} 24. Rxe2 {[%clk 0:00:22]}  dxe4 {[%clk 0:02:14]} 25. Nxe4 {[%clk 0:00:22]}  Rc4 {[%clk 0:02:07]} 26. Nf6+ {[%clk 0:00:21]}  Kh8 {[%clk 0:02:07]} 27. Qg3 {[%clk 0:00:19]}  Rcd4 {[%clk 0:02:04]} 28. Rbe1 {[%clk 0:00:18]}  Nc4 {[%clk 0:02:02]} 29. h4 {[%clk 0:00:17]}  h5 {[%clk 0:01:56]} 30. Qg5 {[%clk 0:00:15]}  Rd1 {[%clk 0:01:16]} 31. e6 {[%clk 0:00:12]}  Rxe1+ {[%clk 0:01:15]} 32. Rxe1 {[%clk 0:00:12]}  fxe6 {[%clk 0:01:16]} 33. Nxh5 {[%clk 0:00:09]}  Qc7 {[%clk 0:00:54]} 34. Qxg6 {[%clk 0:00:05]}  e5 {[%clk 0:00:47]} 35. Nf6 {[%clk 0:00:04]}  Rd7 {[%clk 0:00:17]} 36. Qh6+ {[%clk 0:00:04]}  Rh7 {[%clk 0:00:17]} 37. Qf8# {[%clk 0:00:04]} 1-0


[Site "https://www.chess.com"]

[Event "Titled Tuesday Blitz April 26 Early 2022"]
[White "Urazayev, Arystanbek"]
[Black "Matamoros Franco, Carlos S."]
[WhiteFideId "13709810"]
[BlackFideId "3600017"]
[WhiteElo "2767"]
[BlackElo "2525"]
[Result "1-0"]
[Round "06"]
[TimeControl "180+1"]
[Date "2022.04.26"]
[WhiteClock "0:00:17"]
[BlackClock "0:00:01"]

1. d4 {[%clk 0:03:00]}  Nf6 {[%clk 0:02:57]} 2. c4 {[%clk 0:03:01]}  c5 {[%clk 0:02:56]} 3. d5 {[%clk 0:03:00]}  g6 {[%clk 0:02:56]} 4. Nc3 {[%clk 0:02:57]}  Bg7 {[%clk 0:02:56]} 5. e4 {[%clk 0:02:57]}  d6 {[%clk 0:02:56]} 6. Be2 {[%clk 0:02:58]}  O-O {[%clk 0:02:55]} 7. h4 {[%clk 0:02:58]}  e6 {[%clk 0:02:55]} 8. h5 {[%clk 0:02:58]}  Re8 {[%clk 0:02:55]} 9. h6 {[%clk 0:02:58]}  Bh8 {[%clk 0:02:54]} 10. Bg5 {[%clk 0:02:59]}  Qa5 {[%clk 0:02:37]} 11. Kf1 {[%clk 0:02:54]}  exd5 {[%clk 0:02:26]} 12. exd5 {[%clk 0:02:54]}  a6 {[%clk 0:02:06]} 13. Rh4 {[%clk 0:02:52]}  Bf5 {[%clk 0:01:53]} 14. Rf4 {[%clk 0:02:47]}  Ne4 {[%clk 0:01:39]} 15. Nxe4 {[%clk 0:02:36]}  Rxe4 {[%clk 0:01:36]} 16. Rxe4 {[%clk 0:02:29]}  Bxe4 {[%clk 0:01:36]} 17. g4 {[%clk 0:02:23]}  Qb4 {[%clk 0:01:01]} 18. b3 {[%clk 0:02:06]}  Qc3 {[%clk 0:00:49]} 19. Rc1 {[%clk 0:02:05]}  Qe5 {[%clk 0:00:48]} 20. Bd2 {[%clk 0:02:01]}  Qh2 {[%clk 0:00:38]} 21. Bf3 {[%clk 0:01:52]}  Bd3+ {[%clk 0:00:36]} 22. Ne2 {[%clk 0:01:50]}  Nd7 {[%clk 0:00:31]} 23. Bc3 {[%clk 0:01:45]}  Bxc3 {[%clk 0:00:12]} 24. Rxc3 {[%clk 0:01:43]}  Qh3+ {[%clk 0:00:12]} 25. Ke1 {[%clk 0:01:41]}  Qxf3 {[%clk 0:00:10]} 26. Rxd3 {[%clk 0:01:40]}  Qxg4 {[%clk 0:00:10]} 27. Qa1 {[%clk 0:01:38]}  Ne5 {[%clk 0:00:10]} 28. f4 {[%clk 0:01:37]}  Qh4+ {[%clk 0:00:09]} 29. Kd2 {[%clk 0:01:37]}  Qxh6 {[%clk 0:00:07]} 30. Re3 {[%clk 0:01:37]}  Ng4 {[%clk 0:00:07]} 31. Re7 {[%clk 0:01:34]}  b5 {[%clk 0:00:07]} 32. Qg1 {[%clk 0:01:29]}  Qh4 {[%clk 0:00:05]} 33. Re4 {[%clk 0:01:24]}  bxc4 {[%clk 0:00:01]} 34. bxc4 {[%clk 0:01:23]}  Rb8 {[%clk 0:00:01]} 35. Kc2 {[%clk 0:01:22]}  Qf6 {[%clk 0:00:01]} 36. Nc3 {[%clk 0:01:21]}  Nh6 {[%clk 0:00:01]} 37. Qe1 {[%clk 0:01:19]}  Nf5 {[%clk 0:00:02]} 38. Re8+ {[%clk 0:01:19]}  Rxe8 {[%clk 0:00:02]} 39. Qxe8+ {[%clk 0:01:20]}  Kg7 {[%clk 0:00:03]} 40. Ne4 {[%clk 0:01:12]}  Nd4+ {[%clk 0:00:04]} 41. Kd3 {[%clk 0:01:09]}  Qxf4 {[%clk 0:00:04]} 42. Nd2 {[%clk 0:01:05]}  Qf5+ {[%clk 0:00:05]} 43. Ke3 {[%clk 0:01:05]}  h5 {[%clk 0:00:05]} 44. Qe7 {[%clk 0:00:59]}  Nc2+ {[%clk 0:00:06]} 45. Ke2 {[%clk 0:00:58]}  Nd4+ {[%clk 0:00:06]} 46. Ke1 {[%clk 0:00:58]}  Qf6 {[%clk 0:00:07]} 47. Qe4 {[%clk 0:00:56]}  Qe5 {[%clk 0:00:07]} 48. Qxe5+ {[%clk 0:00:55]}  dxe5 {[%clk 0:00:08]} 49. Ne4 {[%clk 0:00:55]}  f5 {[%clk 0:00:08]} 50. Nxc5 {[%clk 0:00:56]}  h4 {[%clk 0:00:08]} 51. Nxa6 {[%clk 0:00:56]}  h3 {[%clk 0:00:09]} 52. Kf2 {[%clk 0:00:55]}  g5 {[%clk 0:00:08]} 53. c5 {[%clk 0:00:54]}  g4 {[%clk 0:00:08]} 54. c6 {[%clk 0:00:55]}  f4 {[%clk 0:00:08]} 55. c7 {[%clk 0:00:55]}  g3+ {[%clk 0:00:09]} 56. Ke1 {[%clk 0:00:38]}  h2 {[%clk 0:00:09]} 57. c8=Q {[%clk 0:00:39]}  h1=Q+ {[%clk 0:00:10]} 58. Kd2 {[%clk 0:00:39]}  Qxd5 {[%clk 0:00:11]} 59. Nb4 {[%clk 0:00:34]}  Qd6 {[%clk 0:00:07]} 60. Qb7+ {[%clk 0:00:33]}  Kg6 {[%clk 0:00:06]} 61. Kc3 {[%clk 0:00:32]}  Ne6 {[%clk 0:00:06]} 62. Nd3 {[%clk 0:00:26]}  Qd4+ {[%clk 0:00:06]} 63. Kc2 {[%clk 0:00:26]}  e4 {[%clk 0:00:05]} 64. Nb2 {[%clk 0:00:21]}  Qc5+ {[%clk 0:00:05]} 65. Kd2 {[%clk 0:00:19]}  g2 {[%clk 0:00:06]} 66. Qxe4+ {[%clk 0:00:17]}  Kf6 {[%clk 0:00:02]} 67. Qxg2 {[%clk 0:00:18]}  Qd4+ {[%clk 0:00:02]} 68. Nd3 {[%clk 0:00:18]}  Nc5 {[%clk 0:00:02]} 69. Qc6+ {[%clk 0:00:17]}  Ne6 {[%clk 0:00:01]} 70. a4 {[%clk 0:00:18]}  f3 {[%clk 0:00:01]} 71. Qxf3+ {[%clk 0:00:18]}  Ke7 {[%clk 0:00:01]} 72. Qc6 {[%clk 0:00:18]}  Kf6 {[%clk 0:00:01]} 73. a5 {[%clk 0:00:18]}  Kf5 {[%clk 0:00:01]} 74. a6 {[%clk 0:00:17]}  Nf4 {[%clk 0:00:01]} 75. Qb5+ {[%clk 0:00:17]}  Kg4 {[%clk 0:00:01]} 76. Kc2 {[%clk 0:00:15]}  Nxd3 {[%clk 0:00:01]} 77. Qxd3 {[%clk 0:00:16]}  Qa4+ {[%clk 0:00:02]} 78. Kb2 {[%clk 0:00:16]}  Qb4+ {[%clk 0:00:02]} 79. Ka2 {[%clk 0:00:16]}  Qa4+ {[%clk 0:00:02]} 80. Kb1 {[%clk 0:00:16]}  Qb4+ {[%clk 0:00:02]} 81. Kc2 {[%clk 0:00:16]}  Qa4+ {[%clk 0:00:02]} 82. Kd2 {[%clk 0:00:17]}  Qa2+ {[%clk 0:00:02]} 83. Ke3 {[%clk 0:00:18]}  Qa5 {[%clk 0:00:01]} 84. Qd4+ {[%clk 0:00:17]}  Kh3 {[%clk 0:00:01]} 85. a7 {[%clk 0:00:17]} 1-0


[Site "https://www.chess.com"]

[Event "Titled Tuesday Blitz April 26 Early 2022"]
[White "Xiong, Jeffery"]
[Black "Asavasaetakul, Chawit"]
[WhiteFideId "2047640"]
[BlackFideId "6204856"]
[WhiteElo "2727"]
[BlackElo "1697"]
[Result "1-0"]
[Round "06"]
[TimeControl "180+1"]
[Date "2022.04.26"]
[WhiteClock "0:01:21"]
[BlackClock "0:01:05"]

1. Nf3 {[%clk 0:02:28]}  d5 {[%clk 0:02:58]} 2. g3 {[%clk 0:02:28]}  c6 {[%clk 0:02:59]} 3. Bg2 {[%clk 0:02:28]}  Nf6 {[%clk 0:03:00]} 4. O-O {[%clk 0:02:29]}  Bf5 {[%clk 0:03:00]} 5. c4 {[%clk 0:02:28]}  e6 {[%clk 0:03:01]} 6. Qb3 {[%clk 0:02:28]}  Qb6 {[%clk 0:02:55]} 7. d3 {[%clk 0:02:28]}  Nbd7 {[%clk 0:02:55]} 8. Qc2 {[%clk 0:02:26]}  h6 {[%clk 0:02:45]} 9. Be3 {[%clk 0:02:22]}  Bc5 {[%clk 0:02:44]} 10. Bxc5 {[%clk 0:02:21]}  Nxc5 {[%clk 0:02:41]} 11. Nbd2 {[%clk 0:02:21]}  O-O {[%clk 0:02:40]} 12. Rab1 {[%clk 0:02:16]}  a5 {[%clk 0:02:37]} 13. Rfc1 {[%clk 0:02:16]}  Rfd8 {[%clk 0:02:34]} 14. cxd5 {[%clk 0:02:15]}  Rxd5 {[%clk 0:02:04]} 15. Nh4 {[%clk 0:02:15]}  Nxd3 {[%clk 0:01:52]} 16. exd3 {[%clk 0:02:06]}  Bxd3 {[%clk 0:01:52]} 17. Qb3 {[%clk 0:01:45]}  Qxb3 {[%clk 0:01:46]} 18. axb3 {[%clk 0:01:46]}  Rd7 {[%clk 0:01:40]} 19. Ra1 {[%clk 0:01:41]}  g5 {[%clk 0:01:39]} 20. Nhf3 {[%clk 0:01:40]}  Kg7 {[%clk 0:01:31]} 21. Ne5 {[%clk 0:01:39]}  Rdd8 {[%clk 0:01:29]} 22. Ndc4 {[%clk 0:01:36]}  Bxc4 {[%clk 0:01:23]} 23. Nxc4 {[%clk 0:01:37]}  Rd3 {[%clk 0:01:13]} 24. Nxa5 {[%clk 0:01:30]}  Ra7 {[%clk 0:01:08]} 25. Bf1 {[%clk 0:01:27]}  Rd2 {[%clk 0:01:07]} 26. Nc4 {[%clk 0:01:28]}  Rxa1 {[%clk 0:01:07]} 27. Rxa1 {[%clk 0:01:29]}  Rd7 {[%clk 0:01:06]} 28. Ra7 {[%clk 0:01:27]}  Nd5 {[%clk 0:01:05]} 29. Na5 {[%clk 0:01:21]} 1-0


[Site "https://www.chess.com"]

[Event "Titled Tuesday Blitz April 26 Early 2022"]
[White "Yuan, Qingyu"]
[Black "Demin, Vladimir"]
[WhiteFideId "8609772"]
[BlackFideId "4167457"]
[WhiteElo "2359"]
[BlackElo "2413"]
[Result "1-0"]
[Round "06"]
[TimeControl "180+1"]
[Date "2022.04.26"]
[WhiteClock "0:00:13"]
[BlackClock "0:00:11"]

1. e4 {[%clk 0:03:00]}  Nf6 {[%clk 0:03:00]} 2. e5 {[%clk 0:03:01]}  Nd5 {[%clk 0:03:00]} 3. c4 {[%clk 0:03:01]}  Nb6 {[%clk 0:03:00]} 4. d4 {[%clk 0:03:02]}  d6 {[%clk 0:03:00]} 5. f4 {[%clk 0:03:03]}  dxe5 {[%clk 0:02:59]} 6. fxe5 {[%clk 0:03:03]}  Bf5 {[%clk 0:03:00]} 7. Nc3 {[%clk 0:03:03]}  e6 {[%clk 0:03:00]} 8. Be3 {[%clk 0:03:03]}  Bb4 {[%clk 0:03:00]} 9. Nf3 {[%clk 0:02:58]}  c5 {[%clk 0:02:55]} 10. Qb3 {[%clk 0:02:26]}  Nc6 {[%clk 0:02:30]} 11. dxc5 {[%clk 0:02:18]}  Nd7 {[%clk 0:02:29]} 12. O-O-O {[%clk 0:02:13]}  Qa5 {[%clk 0:01:40]} 13. Nb5 {[%clk 0:02:04]}  Bxc5 {[%clk 0:01:18]} 14. Bxc5 {[%clk 0:00:53]}  Nxc5 {[%clk 0:01:17]} 15. Nd6+ {[%clk 0:00:34]}  Kf8 {[%clk 0:01:17]} 16. Qb5 {[%clk 0:00:24]}  Qxb5 {[%clk 0:00:52]} 17. cxb5 {[%clk 0:00:24]}  Nb4 {[%clk 0:00:50]} 18. Nxf5 {[%clk 0:00:17]}  exf5 {[%clk 0:00:48]} 19. a3 {[%clk 0:00:17]}  a5 {[%clk 0:00:24]} 20. axb4 {[%clk 0:00:17]}  axb4 {[%clk 0:00:24]} 21. Bc4 {[%clk 0:00:15]}  Ke7 {[%clk 0:00:24]} 22. Kb1 {[%clk 0:00:13]}  b3 {[%clk 0:00:22]} 23. Nd4 {[%clk 0:00:11]}  g6 {[%clk 0:00:20]} 24. Nxb3 {[%clk 0:00:12]}  Ne4 {[%clk 0:00:20]} 25. Rhe1 {[%clk 0:00:12]}  Ra4 {[%clk 0:00:20]} 26. Bd5 {[%clk 0:00:12]}  Rha8 {[%clk 0:00:20]} 27. Bxe4 {[%clk 0:00:11]}  fxe4 {[%clk 0:00:20]} 28. Rd4 {[%clk 0:00:12]}  Rxd4 {[%clk 0:00:12]} 29. Nxd4 {[%clk 0:00:13]}  Ra4 {[%clk 0:00:13]} 30. Rxe4 {[%clk 0:00:13]}  Ke8 {[%clk 0:00:11]} 31. b3 {[%clk 0:00:13]} 1-0


[Site "https://www.chess.com"]

[Event "Titled Tuesday Blitz April 26 Early 2022"]
[White "Zia, Tahsin Tajwar"]
[Black "Legenia, Artem"]
[WhiteFideId "10211888"]
[BlackFideId "14136945"]
[WhiteElo "1800"]
[BlackElo "1936"]
[Result "1-0"]
[Round "06"]
[TimeControl "180+1"]
[Date "2022.04.26"]
[WhiteClock "0:02:17"]
[BlackClock "0:02:06"]

1. d4 {[%clk 0:03:00]}  f5 {[%clk 0:02:56]} 2. Nc3 {[%clk 0:03:01]}  e6 {[%clk 0:02:55]} 3. e4 {[%clk 0:03:01]}  fxe4 {[%clk 0:02:55]} 4. Nxe4 {[%clk 0:03:00]}  Nf6 {[%clk 0:02:56]} 5. Bd3 {[%clk 0:02:58]}  Be7 {[%clk 0:02:43]} 6. Nf3 {[%clk 0:02:57]}  O-O {[%clk 0:02:36]} 7. Qe2 {[%clk 0:02:50]}  Nc6 {[%clk 0:02:35]} 8. c3 {[%clk 0:02:50]}  Nxe4 {[%clk 0:02:29]} 9. Qxe4 {[%clk 0:02:51]}  g6 {[%clk 0:02:26]} 10. Bh6 {[%clk 0:02:50]}  Rf7 {[%clk 0:02:21]} 11. O-O-O {[%clk 0:02:50]}  d5 {[%clk 0:02:19]} 12. Qe3 {[%clk 0:02:48]}  Bf6 {[%clk 0:02:15]} 13. h4 {[%clk 0:02:44]}  Re7 {[%clk 0:02:15]} 14. h5 {[%clk 0:02:38]}  e5 {[%clk 0:02:15]} 15. dxe5 {[%clk 0:02:30]}  Nxe5 {[%clk 0:02:16]} 16. hxg6 {[%clk 0:02:31]}  hxg6 {[%clk 0:02:12]} 17. Nxe5 {[%clk 0:02:22]}  Rxe5 {[%clk 0:02:11]} 18. Qg3 {[%clk 0:02:22]}  Bg5+ {[%clk 0:02:07]} 19. f4 {[%clk 0:02:20]}  Bxh6 {[%clk 0:02:06]} 20. Rxh6 {[%clk 0:02:17]} 1-0


[Site "https://www.chess.com"]